[Event "76th Montenegro Championship 2024"]
[Site "Podgorica"]
[Date "2024.02.15"]
[Round "11.13"]
[White "Skvortsov, Andrei"]
[Black "Krstonijevic, Stjepan"]
[Result "1-0"]
[ECO "B23"]
[WhiteElo "2307"]
[BlackElo "2108"]
[Annotator "TA"]
[PlyCount "107"]
[EventDate "2024.02.06"]
[EventType "swiss"]
[EventCountry "MNE"]
[SourceTitle "playchess.com"]
[Source "ChessBase"]
[SourceQuality "1"]
[TimeControl "40/5400+30:1800+30"]

{[%evp 9,107,0,17,0,0,8,9,0,14,0,22,6,0,0,-14,-30,-30,-49,35,0,0,0,0,-14,-8,-21,-2,-37,49,64,58,78,56,70,71,77,81,60,58,59,100,105,114,111,137,141,177,178,368,368,364,357,370,370,395,383,439,427,400,331,531,250,304,306,360,388,388,367,576,612,603,439,429,439,385,420,425,428,420,408,527,421,477,470,1755,2042,1756,1581,5314,1189,5943,11724,9502,9708,12673,8790,12672,8790,29978,29979]} 1. e4 {[%emt 0:06:39]} c5 {[%emt 0:00:07]} 2. Nc3 {[%emt 0:00:05]} e6 {[%emt 0:00:04]} 3. d4 {[%emt 0:00:03]} cxd4 {[%emt 0:00:05]} 4. Qxd4 {[%emt 0:00:03]} Nc6 {[%emt 0:00:05]} 5. Qe3 {[%emt 0:00:03]} d6 {[%emt 0:02:11]} 6. b3 {[%emt 0:02:27]} Nf6 {[%emt 0:01:12]} 7. Bb2 {[%emt 0:00:14]} a6 {[%emt 0:00:22]} 8. O-O-O {[%emt 0:00:19] The position is equal.} Be7 {[%emt 0:00:56]} 9. Kb1 {[%emt 0:02:07]} Qc7 {[%emt 0:02:31]} 10. f4 {[%emt 0:01:09]} O-O {[%emt 0:06:34]} 11. Nf3 {[%emt 0:02:19]} b5 {[%emt 0:01:31]} 12. Bd3 {[%emt 0:05:30]} Nb4 {[%emt 0:11:35]} 13. e5 {[%emt 0:06:39]} Ng4 {[%emt 0:18:16]} ({Better is} 13... dxe5 $1 $15 14. Qxe5 Qb8) 14. Qe2 {[%emt 0:00:26]} (14. Bxh7+ Kxh7 15. Qe4+ Kg8 16. exd6 (16. Qxa8 $2 d5 $19) 16... Bxd6 17. Rxd6 (17. Qxa8 Nxc2 18. Qe4 Nce3 $15) 17... Qxd6 $15) (14. Qe1 $14) 14... Nxd3 $11 {[%emt 0:01:47]} 15. Rxd3 {[%emt 0:01:36] [#] Ng5 would now be deadly.} dxe5 {[%emt 0:18:10]} 16. fxe5 {[%emt 0:01:01]} Bb7 {[%emt 0:00:42]} 17. Re1 {[%emt 0:18:14]} b4 {[%emt 0:01:56]} 18. Na4 {[%emt 0:00:18]} Bc6 {[%emt 0:07:24]} ({Black should play} 18... a5 $15) 19. Nd4 $1 $14 {[%emt 0:00:13]} Nh6 {[%emt 0:00:28]} (19... Nxh2 $2 20. Nxc6 Qxc6 21. Rh1 $18) 20. Nxc6 {[%emt 0:08:13]} Qxc6 {[%emt 0:00:03]} 21. g4 $1 {[%emt 0:00:14] Prevents Nf5} Rfd8 {[%emt 0:01:43]} 22. Bd4 {[%emt 0:01:22]} Rab8 {[%emt 0:02:15]} 23. Qe4 {[%emt 0:04:10]} Rbc8 {[%emt 0:02:39]} 24. Re2 {[%emt 0:02:32]} Qb5 {[%emt 0:03:49] Black is on the road to losing.} 25. h3 {[%emt 0:01:50]} Rc7 {[%emt 0:02:45]} 26. Red2 {[%emt 0:05:26]} Rdc8 {[%emt 0:03:05]} 27. Nb6 {[%emt 0:01:46]} Rb8 {[%emt 0:00:26]} 28. Be3 {[%emt 0:03:05]} Qc6 $2 {[%emt 0:01:05]} (28... Rxb6 $2 29. Rd8+ (29. g5 Rb8 $14) 29... Bf8 30. Qa8 $18) (28... a5 {was called for.} 29. Nd7 Re8) 29. Qxc6 $18 {[%emt 0:01:56]} Rxc6 {[%emt 0:00:01]} 30. Rd7 {[%emt 0:01:06]} Kf8 {[%emt 0:01:19]} 31. Ra7 {[%emt 0:00:47] [#] Black must now prevent Nd7+.} Ke8 {[%emt 0:00:01]} 32. Rdd7 {[%emt 0:03:44]} (32. Rxa6 Bd8 $18) 32... Ng8 {[%emt 0:00:51]} 33. Nc4 {[%emt 0:01:54]} (33. Rxa6 Rbxb6 (33... Rcxb6 34. Rxe7+ Nxe7 35. Bxb6 $18) 34. Rxe7+ Nxe7 $18) 33... f6 {[%emt 0:02:41]} 34. Bf4 {[%emt 0:03:56] Hoping for exf6.} Bc5 $2 {[%emt 0:04:27]} (34... Rd8 35. Rxd8+ (35. Rdb7 Bc5 $18) 35... Kxd8 36. Ra8+ Rc8) 35. Rdc7 {[%emt 0:01:35]} (35. Nd6+ $142 Rxd6 36. exd6 Bxa7 37. Rxg7 (37. Rxa7 e5 $18)) 35... Rxc7 {[%emt 0:03:06]} 36. Rxc7 {[%emt 0:00:02]} Be7 {[%emt 0:00:02]} 37. exf6 {[%emt 0:03:45]} Bxf6 {[%emt 0:00:09]} 38. g5 {[%emt 0:00:59]} Bc3 {[%emt 0:00:44]} (38... Bd4 {might work better.} 39. Nd6+ Kd8) 39. Ra7 {[%emt 0:00:48][%csl LRa6,LRb8]} e5 {[%emt 0:00:30]} 40. Bxe5 {[%emt 0:00:00]} Bxe5 {[%emt 0:00:00]} 41. Nxe5 {[%emt 0:00:20][%mdl 4096] Endgame. KRN-KRN} Rb5 {[%emt 0:00:33]} 42. Ra8+ {[%emt 0:00:56]} (42. Rxg7 Kf8 43. Rxh7 (43. Rf7+ Ke8 $11) 43... Rxe5 $17) 42... Ke7 {[%emt 0:33:20]} 43. Nc4 (43. Rxg8 Rxe5 44. Rxg7+ Kf8 $18) 43... Rxg5 {[%emt 0:00:00]} 44. Rxg8 {[%emt 0:02:54] KRN-KR} Kf7 {[%emt 0:00:00]} 45. Rd8 {[%emt 0:00:09]} Rg3 {[%emt 0:00:00]} 46. Rd3 {[%emt 0:00:07]} Rxd3 {[%emt 0:00:00] KR-KN} (46... Rg5 $142 47. Kb2 h5) 47. Ne5+ {[%emt 0:00:25]} Ke6 {[%emt 0:00:00]} 48. Nxd3 {[%emt 0:00:04] KN-KP} g5 {[%emt 0:00:00][%cal Bg7g5,Bg5g4][%mdl 32]} 49. Kc1 {[%emt 0:00:25]} h5 {[%emt 0:00:00]} 50. Kd2 {[%emt 0:00:06]} a5 {[%emt 0:00:00]} 51. Ke3 {[%emt 0:00:06]} Kd5 {[%emt 0:04:30]} 52. Nf2 {[%emt 0:00:43] White wants to mate with Ne4.} Ke5 {[%emt 0:00:00]} 53. Ne4 {[%emt 0:00:12]} g4 {[%emt 0:00:00]} 54. h4 {[%emt 0:42:28] Weighted Error Value: White=0.26 (precise) /Black=0.42.  Mistake:       	White=2     	Black=6      Inaccurate:     	---       	Black=1      OK:         	White=17    	Black=9      Best:        	White=4     	Black=4      Strong:       	White=2     	---} 1-0

[Event "76th Montenegro Championship 2024"]
[Site "Podgorica"]
[Date "2024.02.15"]
[Round "11.14"]
[White "Loncar, Milenko"]
[Black "Musovic, Armin"]
[Result "0-1"]
[ECO "A05"]
[WhiteElo "2026"]
[BlackElo "2268"]
[Annotator "NA RC"]
[PlyCount "70"]
[EventDate "2024.02.06"]
[EventType "swiss"]
[EventCountry "MNE"]
[SourceTitle "playchess.com"]
[Source "ChessBase"]
[SourceQuality "1"]
[TimeControl "40/5400+30:1800+30"]

1. Nf3 {[%emt 0:02:18]} Nf6 {[%emt 0:00:10]} 2. g3 {[%emt 0:00:23]} g6 {[%emt 0:00:05]} 3. Bg2 {[%emt 0:00:10]} Bg7 {[%emt 0:00:04]} 4. d3 {[%emt 0:00:15]} O-O {[%emt 0:00:26]} 5. Bd2 {[%emt 0:00:16]} Re8 {[%emt 0:00:59]} 6. e4 {[%emt 0:02:27]} d6 {[%emt 0:00:36]} 7. e5 {[%emt 0:01:40]} Ng4 {[%emt 0:02:16]} 8. Bc3 {[%emt 0:01:19]} Nxe5 {[%emt 0:01:17]} 9. Nxe5 {[%emt 0:00:30]} dxe5 {[%emt 0:00:07]} 10. Qe2 {[%emt 0:00:30]} Nc6 {[%emt 0:00:09]} 11. Bxc6 {[%emt 0:10:20]} bxc6 {[%emt 0:02:41]} 12. Nd2 {[%emt 0:00:31]} Qd5 {[%emt 0:00:13]} 13. f3 {[%emt 0:04:56]} Bh3 {[%emt 0:01:33]} 14. g4 {[%emt 0:01:40]} Bxg4 {[%emt 0:00:14]} 15. O-O-O {[%emt 0:00:45]} Bh5 {[%emt 0:02:39]} 16. Kb1 {[%emt 0:00:49]} Rab8 {[%emt 0:01:07]} 17. b3 {[%emt 0:04:51]} a5 {[%emt 0:00:47]} 18. Rde1 {[%emt 0:02:10]} f6 {[%emt 0:00:34]} 19. a4 {[%emt 0:03:56]} Rb7 {[%emt 0:05:44]} 20. Qe4 {[%emt 0:04:46]} Bh6 {[%emt 0:01:05]} 21. Rhf1 {[%emt 0:05:40]} Bf4 {[%emt 0:06:31]} 22. Re2 {[%emt 0:02:31]} g5 {[%emt 0:02:39]} 23. Nc4 {[%emt 0:04:03]} Ra8 {[%emt 0:05:14]} 24. Rg2 {[%emt 0:09:17]} Bg6 {[%emt 0:03:12]} 25. Qxd5+ {[%emt 0:04:10]} cxd5 {[%emt 0:00:03]} 26. Nxa5 {[%emt 0:03:17]} Rb6 {[%emt 0:00:12]} 27. b4 {[%emt 0:01:17]} Rxa5 {[%emt 0:00:10]} 28. Rh1 {[%emt 0:03:50]} Rxa4 {[%emt 0:01:47]} 29. h4 {[%emt 0:00:57]} d4 {[%emt 0:00:16]} 30. Be1 {[%emt 0:01:09]} Rba6 {[%emt 0:00:12]} 31. b5 {[%emt 0:01:03]} Ra1+ {[%emt 0:00:25]} 32. Kb2 {[%emt 0:00:02]} R6a4 {[%emt 0:00:03]} 33. Kb3 {[%emt 0:00:33]} Bf7+ {[%emt 0:00:20]} 34. c4 {[%emt 0:00:01]} dxc3+ {[%emt 0:00:24]} 35. Kxc3 {[%emt 0:00:08]} R1a3+ {[%emt 0:00:19]} 0-1

[Event "76th Montenegro Championship 2024"]
[Site "Podgorica"]
[Date "2024.02.15"]
[Round "11.15"]
[White "Milovic, Ilija"]
[Black "Pobor, Milo"]
[Result "1/2-1/2"]
[ECO "D20"]
[WhiteElo "1823"]
[BlackElo "2201"]
[Annotator "RC"]
[PlyCount "99"]
[EventDate "2024.02.06"]
[EventType "swiss"]
[EventCountry "MNE"]
[SourceTitle "playchess.com"]
[Source "ChessBase"]
[SourceQuality "1"]
[TimeControl "40/5400+30:1800+30"]

1. d4 {[%emt 0:00:06]} d5 {[%emt 0:00:06]} 2. c4 {[%emt 0:00:11]} dxc4 {[%emt 0:00:05]} 3. e4 {[%emt 0:00:14]} e5 {[%emt 0:00:15]} 4. Nf3 {[%emt 0:00:28]} Bb4+ {[%emt 0:00:05]} 5. Nc3 {[%emt 0:00:08]} exd4 {[%emt 0:00:22]} 6. Nxd4 {[%emt 0:00:42]} Nd7 {[%emt 0:00:20]} 7. Bxc4 {[%emt 0:00:53]} Ngf6 {[%emt 0:00:11]} 8. f3 {[%emt 0:04:34]} O-O {[%emt 0:03:23]} 9. O-O {[%emt 0:02:03]} c6 {[%emt 0:01:17]} 10. Be3 {[%emt 0:00:56]} Nb6 {[%emt 0:03:37]} 11. Be2 {[%emt 0:01:20]} Qe7 {[%emt 0:02:33]} 12. Bf2 {[%emt 0:09:50]} Bd6 {[%emt 0:19:10]} 13. Qd2 {[%emt 0:05:31]} Qc7 {[%emt 0:03:59]} 14. g3 {[%emt 0:05:16]} Bh3 {[%emt 0:04:41]} 15. Rfd1 {[%emt 0:00:44]} Rad8 {[%emt 0:00:05]} 16. a4 {[%emt 0:10:39]} Nc8 {[%emt 0:04:58]} 17. Qg5 {[%emt 0:02:35]} Ne7 {[%emt 0:07:45]} 18. Rac1 {[%emt 0:01:56]} Qb8 {[%emt 0:02:11]} 19. Qd2 {[%emt 0:22:55]} Ng6 {[%emt 0:07:34]} 20. Qc2 {[%emt 0:01:23]} Rfe8 {[%emt 0:01:32]} 21. f4 {[%emt 0:01:32]} Ng4 {[%emt 0:09:46]} 22. Bxg4 {[%emt 0:02:29]} Bxg4 {[%emt 0:00:03]} 23. Re1 {[%emt 0:00:19]} Bb4 {[%emt 0:02:44]} 24. Kg2 {[%emt 0:03:45]} Bd7 {[%emt 0:06:23]} 25. Rcd1 {[%emt 0:04:27]} Qc8 {[%emt 0:02:11]} 26. Nf5 {[%emt 0:01:58]} b6 {[%emt 0:01:30]} 27. Kg1 {[%emt 0:03:49]} Be6 {[%emt 0:03:03]} 28. Rxd8 {[%emt 0:07:08]} Rxd8 {[%emt 0:00:05]} 29. Rd1 {[%emt 0:00:42]} Rxd1+ {[%emt 0:04:36]} 30. Nxd1 {[%emt 0:00:14]} Bxf5 {[%emt 0:00:42]} 31. exf5 {[%emt 0:00:02]} Ne7 {[%emt 0:00:06]} 32. Qe4 {[%emt 0:00:45]} Bd6 {[%emt 0:00:21]} 33. Ne3 {[%emt 0:01:11]} Bc5 {[%emt 0:01:51]} 34. Kg2 {[%emt 0:01:15]} Bxe3 {[%emt 0:00:36]} 35. Qxe7 {[%emt 0:00:13]} Bxf2 {[%emt 0:00:07]} 36. Kxf2 {[%emt 0:00:02]} a6 {[%emt 0:00:19]} 37. f6 {[%emt 0:00:46]} gxf6 {[%emt 0:00:56]} 38. Qxf6 {[%emt 0:00:08]} Qd7 {[%emt 0:00:10]} 39. Qg5+ {[%emt 0:01:37]} Kf8 {[%emt 0:00:04]} 40. Qf6 {[%emt 0:00:00]} Qd2+ {[%emt 0:00:00]} 41. Kf3 {[%emt 0:02:42]} Qd5+ {[%emt 0:03:12]} 42. Kf2 {[%emt 0:00:47]} h5 {[%emt 0:01:40]} 43. Qe5 {[%emt 0:02:51]} Qd2+ {[%emt 0:07:33]} 44. Kg1 {[%emt 0:01:10]} Qd1+ {[%emt 0:01:28]} 45. Kg2 {[%emt 0:00:36]} Qxa4 {[%emt 0:04:44]} 46. Qb8+ {[%emt 0:00:50]} Kg7 {[%emt 0:00:32]} 47. Qe5+ {[%emt 0:07:13]} Kf8 {[%emt 0:01:05]} 48. Qb8+ {[%emt 0:00:30]} Kg7 {[%emt 0:01:18]} 49. Qe5+ {[%emt 0:00:18]} Kf8 {[%emt 0:00:03]} 50. Qb8+ {[%emt 0:00:06]} 1/2-1/2

[Event "76th Montenegro Championship 2024"]
[Site "Podgorica"]
[Date "2024.02.15"]
[Round "11.17"]
[White "Zivkovic, Slaven"]
[Black "Koljevic, Nikolina"]
[Result "0-1"]
[ECO "B31"]
[WhiteElo "1899"]
[BlackElo "1974"]
[Annotator "NA RC"]
[PlyCount "36"]
[EventDate "2024.02.06"]
[EventType "swiss"]
[EventCountry "MNE"]
[SourceTitle "playchess.com"]
[Source "ChessBase"]
[SourceQuality "1"]
[TimeControl "40/5400+30:1800+30"]

1. e4 {[%emt 0:03:24]} c5 {[%emt 0:00:12]} 2. Nf3 {[%emt 0:00:21]} Nc6 {[%emt 0:00:07]} 3. Bb5 {[%emt 0:00:37]} g6 {[%emt 0:00:21]} 4. O-O {[%emt 0:00:10]} Bg7 {[%emt 0:00:05]} 5. c3 {[%emt 0:00:19]} e5 {[%emt 0:01:06]} 6. Re1 {[%emt 0:00:15]} Nge7 {[%emt 0:00:21]} 7. d3 {[%emt 0:03:20]} O-O {[%emt 0:00:50]} 8. Be3 {[%emt 0:06:43]} d6 {[%emt 0:00:14]} 9. d4 {[%emt 0:01:07]} cxd4 {[%emt 0:02:01]} 10. cxd4 {[%emt 0:00:48]} Bg4 {[%emt 0:01:14]} 11. d5 {[%emt 0:09:07]} Nd4 {[%emt 0:03:08]} 12. Bxd4 {[%emt 0:00:15]} exd4 {[%emt 0:00:06]} 13. Bd3 {[%emt 0:00:08]} Bxf3 {[%emt 0:07:49]} 14. Qxf3 {[%emt 0:04:17]} f5 {[%emt 0:15:41]} 15. Qh3 {[%emt 0:06:43]} fxe4 {[%emt 0:24:58]} 16. Qe6+ {[%emt 0:06:30]} Kh8 {[%emt 0:03:18]} 17. Rxe4 {[%emt 0:03:05]} Nf5 {[%emt 0:00:47]} 18. Nd2 {[%emt 0:04:16]} Rf6 {[%emt 0:37:12]} 0-1